[Event "Titled Tuesday Blitz March 29 Early 2022"]
[White "Petrova, Irina"]
[Black "Coelho, Ramyres Santana"]
[WhiteFideId "14124122"]
[BlackFideId "2120690"]
[WhiteElo "1993"]
[BlackElo "1888"]
[Result "0-1"]
[Round "11"]
[TimeControl "180+1"]
[Date "2022.03.30"]
[WhiteClock "0:00:01"]
[BlackClock "0:00:05"]

1. e4 {[%clk 0:03:00]}  c5 {[%clk 0:02:57]} 2. Nf3 {[%clk 0:03:00]}  d6 {[%clk 0:02:40]} 3. Bb5+ {[%clk 0:02:59]}  Nd7 {[%clk 0:02:39]} 4. O-O {[%clk 0:02:58]}  a6 {[%clk 0:02:39]} 5. Bxd7+ {[%clk 0:02:58]}  Bxd7 {[%clk 0:02:40]} 6. d4 {[%clk 0:02:58]}  cxd4 {[%clk 0:02:38]} 7. Qxd4 {[%clk 0:02:59]}  e5 {[%clk 0:02:38]} 8. Qd3 {[%clk 0:02:58]}  Nf6 {[%clk 0:02:35]} 9. a4 {[%clk 0:02:52]}  Be7 {[%clk 0:02:33]} 10. Bg5 {[%clk 0:02:51]}  Be6 {[%clk 0:02:31]} 11. c4 {[%clk 0:02:49]}  Rc8 {[%clk 0:02:17]} 12. b3 {[%clk 0:02:48]}  h6 {[%clk 0:02:07]} 13. Bxf6 {[%clk 0:02:47]}  Bxf6 {[%clk 0:02:08]} 14. Nc3 {[%clk 0:02:47]}  O-O {[%clk 0:02:08]} 15. Rfd1 {[%clk 0:02:45]}  Be7 {[%clk 0:02:08]} 16. Nd5 {[%clk 0:02:44]}  Bxd5 {[%clk 0:02:07]} 17. Qxd5 {[%clk 0:02:44]}  Qc7 {[%clk 0:02:03]} 18. Nd2 {[%clk 0:02:42]}  b6 {[%clk 0:01:49]} 19. Nf1 {[%clk 0:02:41]}  Kh8 {[%clk 0:01:44]} 20. Ne3 {[%clk 0:02:41]}  g6 {[%clk 0:01:42]} 21. Qd3 {[%clk 0:02:36]}  Qc5 {[%clk 0:01:19]} 22. Nd5 {[%clk 0:02:34]}  Bd8 {[%clk 0:01:18]} 23. Rac1 {[%clk 0:02:18]}  f5 {[%clk 0:01:03]} 24. exf5 {[%clk 0:02:03]}  Rxf5 {[%clk 0:00:59]} 25. Qe3 {[%clk 0:01:53]}  Bg5 {[%clk 0:00:53]} 26. Qxc5 {[%clk 0:01:52]}  Rxc5 {[%clk 0:00:44]} 27. Rc2 {[%clk 0:01:49]}  b5 {[%clk 0:00:42]} 28. axb5 {[%clk 0:01:30]}  axb5 {[%clk 0:00:41]} 29. h4 {[%clk 0:01:30]}  Bxh4 {[%clk 0:00:27]} 30. Ne3 {[%clk 0:01:29]}  Rf6 {[%clk 0:00:24]} 31. Rd5 {[%clk 0:01:18]}  bxc4 {[%clk 0:00:19]} 32. Rxc5 {[%clk 0:01:04]}  dxc5 {[%clk 0:00:17]} 33. Nxc4 {[%clk 0:01:00]}  e4 {[%clk 0:00:16]} 34. g3 {[%clk 0:00:59]}  Bg5 {[%clk 0:00:17]} 35. Re2 {[%clk 0:00:58]}  Re6 {[%clk 0:00:17]} 36. Kg2 {[%clk 0:00:58]}  Kg7 {[%clk 0:00:16]} 37. Ra2 {[%clk 0:00:54]}  h5 {[%clk 0:00:15]} 38. Ra5 {[%clk 0:00:50]}  e3 {[%clk 0:00:14]} 39. fxe3 {[%clk 0:00:47]}  Bxe3 {[%clk 0:00:14]} 40. Kf3 {[%clk 0:00:45]}  Bd4 {[%clk 0:00:14]} 41. Ra7+ {[%clk 0:00:40]}  Kh6 {[%clk 0:00:14]} 42. Rd7 {[%clk 0:00:35]}  Rf6+ {[%clk 0:00:14]} 43. Ke4 {[%clk 0:00:32]}  Ra6 {[%clk 0:00:15]} 44. Nd6 {[%clk 0:00:23]}  Kg5 {[%clk 0:00:11]} 45. Nb5 {[%clk 0:00:20]}  Kg4 {[%clk 0:00:09]} 46. Nxd4 {[%clk 0:00:20]}  cxd4 {[%clk 0:00:10]} 47. Rxd4 {[%clk 0:00:19]}  Kxg3 {[%clk 0:00:10]} 48. b4 {[%clk 0:00:19]}  Re6+ {[%clk 0:00:09]} 49. Kd5 {[%clk 0:00:18]}  Rb6 {[%clk 0:00:10]} 50. Kc5 {[%clk 0:00:18]}  Rf6 {[%clk 0:00:10]} 51. b5 {[%clk 0:00:17]}  g5 {[%clk 0:00:10]} 52. Rd3+ {[%clk 0:00:16]}  Kg4 {[%clk 0:00:10]} 53. Rd4+ {[%clk 0:00:16]}  Kg3 {[%clk 0:00:10]} 54. Rd3+ {[%clk 0:00:15]}  Kf2 {[%clk 0:00:10]} 55. Rd6 {[%clk 0:00:15]}  Rxd6 {[%clk 0:00:09]} 56. Kxd6 {[%clk 0:00:16]}  g4 {[%clk 0:00:08]} 57. b6 {[%clk 0:00:16]}  g3 {[%clk 0:00:09]} 58. b7 {[%clk 0:00:17]}  g2 {[%clk 0:00:10]} 59. b8=Q {[%clk 0:00:17]}  g1=Q {[%clk 0:00:11]} 60. Qf8+ {[%clk 0:00:16]}  Kg2 {[%clk 0:00:11]} 61. Qg8+ {[%clk 0:00:13]}  Kh2 {[%clk 0:00:10]} 62. Qf7 {[%clk 0:00:11]}  Qg3+ {[%clk 0:00:10]} 63. Kd5 {[%clk 0:00:10]}  h4 {[%clk 0:00:11]} 64. Ke4 {[%clk 0:00:09]}  Qg2+ {[%clk 0:00:10]} 65. Ke3 {[%clk 0:00:08]}  h3 {[%clk 0:00:10]} 66. Qf6 {[%clk 0:00:02]}  Qg3+ {[%clk 0:00:09]} 67. Ke2 {[%clk 0:00:02]}  Qg2+ {[%clk 0:00:09]} 68. Ke1 {[%clk 0:00:02]}  Kh1 {[%clk 0:00:09]} 69. Qf1+ {[%clk 0:00:01]}  Kh2 {[%clk 0:00:07]} 70. Qf4+ {[%clk 0:00:01]}  Qg3+ {[%clk 0:00:07]} 71. Qf2+ {[%clk 0:00:01]}  Kh1 {[%clk 0:00:04]} 72. Kf1 {[%clk 0:00:01]}  Qxf2+ {[%clk 0:00:04]} 73. Kxf2 {[%clk 0:00:01]}  Kh2 {[%clk 0:00:05]} 0-1


[Site "https://www.chess.com"]

[Event "Titled Tuesday Blitz March 29 Early 2022"]
[White "Piesik, Piotr"]
[Black "Zhigalko, Sergei"]
[WhiteFideId "1136194"]
[BlackFideId "13502956"]
[WhiteElo "2190"]
[BlackElo "2662"]
[Result "0-1"]
[Round "11"]
[TimeControl "180+1"]
[Date "2022.03.29"]
[WhiteClock "0:02:20"]
[BlackClock "0:01:21"]

1. Nf3 {[%clk 0:03:00]}  d5 {[%clk 0:02:58]} 2. g3 {[%clk 0:03:01]}  c6 {[%clk 0:02:59]} 3. Bg2 {[%clk 0:03:01]}  Bg4 {[%clk 0:03:00]} 4. O-O {[%clk 0:03:02]}  Nd7 {[%clk 0:03:00]} 5. d3 {[%clk 0:03:02]}  e6 {[%clk 0:03:00]} 6. Nbd2 {[%clk 0:03:03]}  Bd6 {[%clk 0:03:01]} 7. e4 {[%clk 0:03:03]}  Ne7 {[%clk 0:03:01]} 8. h3 {[%clk 0:03:02]}  Bh5 {[%clk 0:03:01]} 9. b3 {[%clk 0:03:02]}  O-O {[%clk 0:03:01]} 10. Bb2 {[%clk 0:03:03]}  a5 {[%clk 0:03:01]} 11. a4 {[%clk 0:03:02]}  Re8 {[%clk 0:02:59]} 12. Qe1 {[%clk 0:03:02]}  c5 {[%clk 0:02:59]} 13. e5 {[%clk 0:02:59]}  Bc7 {[%clk 0:02:58]} 14. c4 {[%clk 0:02:58]}  Nc6 {[%clk 0:02:54]} 15. Qe3 {[%clk 0:02:56]}  Nb4 {[%clk 0:02:49]} 16. Rac1 {[%clk 0:02:53]}  d4 {[%clk 0:02:39]} 17. Qe2 {[%clk 0:02:45]}  Nxe5 {[%clk 0:02:39]} 18. g4 {[%clk 0:02:45]}  Nexd3 {[%clk 0:02:23]} 19. gxh5 {[%clk 0:02:40]}  Nxb2 {[%clk 0:02:24]} 20. Ne4 {[%clk 0:02:35]}  N2d3 {[%clk 0:02:21]} 21. Rcd1 {[%clk 0:02:35]}  Nf4 {[%clk 0:02:16]} 22. Qd2 {[%clk 0:02:35]}  b6 {[%clk 0:02:05]} 23. h6 {[%clk 0:02:34]}  f5 {[%clk 0:02:02]} 24. Ng3 {[%clk 0:02:30]}  gxh6 {[%clk 0:01:39]} 25. Rfe1 {[%clk 0:02:30]}  Qf6 {[%clk 0:01:37]} 26. Nxd4 {[%clk 0:02:20]}  Nxg2 {[%clk 0:01:21]} 0-1


[Site "https://www.chess.com"]

[Event "Titled Tuesday Blitz March 29 Early 2022"]
[White "Pranav, V"]
[Black "Kozak, Antoni"]
[WhiteFideId "25060783"]
[BlackFideId "21832030"]
[WhiteElo "2349"]
[BlackElo "2236"]
[Result "1-0"]
[Round "11"]
[TimeControl "180+1"]
[Date "2022.03.29"]
[WhiteClock "0:00:04"]
[BlackClock "0:00:11"]

1. e4 {[%clk 0:03:00]}  c6 {[%clk 0:02:57]} 2. d4 {[%clk 0:03:00]}  d5 {[%clk 0:02:57]} 3. e5 {[%clk 0:03:01]}  Bf5 {[%clk 0:02:57]} 4. Nf3 {[%clk 0:03:01]}  e6 {[%clk 0:02:57]} 5. Be2 {[%clk 0:02:57]}  Ne7 {[%clk 0:02:53]} 6. c3 {[%clk 0:02:57]}  Nd7 {[%clk 0:02:53]} 7. O-O {[%clk 0:02:56]}  h6 {[%clk 0:02:53]} 8. Na3 {[%clk 0:02:56]}  g5 {[%clk 0:02:45]} 9. Nc2 {[%clk 0:02:56]}  Bg7 {[%clk 0:02:39]} 10. Ne3 {[%clk 0:02:55]}  Bg6 {[%clk 0:02:38]} 11. h4 {[%clk 0:02:54]}  Qc7 {[%clk 0:02:38]} 12. hxg5 {[%clk 0:02:50]}  hxg5 {[%clk 0:02:38]} 13. Nxg5 {[%clk 0:02:50]}  O-O-O {[%clk 0:02:38]} 14. Bg4 {[%clk 0:02:46]}  Rdg8 {[%clk 0:02:10]} 15. f4 {[%clk 0:02:33]}  Bh6 {[%clk 0:02:01]} 16. Bf3 {[%clk 0:02:25]}  Bxg5 {[%clk 0:01:57]} 17. fxg5 {[%clk 0:02:26]}  Bf5 {[%clk 0:01:27]} 18. Ng4 {[%clk 0:02:11]}  Ng6 {[%clk 0:01:17]} 19. Nh6 {[%clk 0:02:10]}  Rg7 {[%clk 0:01:14]} 20. Bh5 {[%clk 0:02:02]}  Ndf8 {[%clk 0:01:06]} 21. Be3 {[%clk 0:01:41]}  Nh4 {[%clk 0:01:03]} 22. Rf2 {[%clk 0:00:55]}  Rhh7 {[%clk 0:00:53]} 23. Qe2 {[%clk 0:00:39]}  Be4 {[%clk 0:00:53]} 24. Raf1 {[%clk 0:00:34]}  Nf5 {[%clk 0:00:47]} 25. Nxf5 {[%clk 0:00:30]}  exf5 {[%clk 0:00:46]} 26. Bf3 {[%clk 0:00:26]}  Ne6 {[%clk 0:00:40]} 27. Bxe4 {[%clk 0:00:25]}  fxe4 {[%clk 0:00:40]} 28. Qg4 {[%clk 0:00:25]}  Qd7 {[%clk 0:00:38]} 29. Rf5 {[%clk 0:00:20]}  Rh8 {[%clk 0:00:34]} 30. Kf2 {[%clk 0:00:20]}  Rhg8 {[%clk 0:00:34]} 31. Rf6 {[%clk 0:00:18]}  Kb8 {[%clk 0:00:23]} 32. Ke1 {[%clk 0:00:17]}  Qc7 {[%clk 0:00:23]} 33. Rxe6 {[%clk 0:00:10]}  fxe6 {[%clk 0:00:23]} 34. Qxe6 {[%clk 0:00:11]}  a5 {[%clk 0:00:18]} 35. c4 {[%clk 0:00:10]}  Qb6 {[%clk 0:00:17]} 36. Qd6+ {[%clk 0:00:08]}  Ka8 {[%clk 0:00:17]} 37. cxd5 {[%clk 0:00:08]}  Qxb2 {[%clk 0:00:17]} 38. dxc6 {[%clk 0:00:07]}  Rc8 {[%clk 0:00:17]} 39. Rf8 {[%clk 0:00:05]}  Rg8 {[%clk 0:00:14]} 40. Rxg8 {[%clk 0:00:04]}  Rxg8 {[%clk 0:00:14]} 41. cxb7+ {[%clk 0:00:03]}  Qxb7 {[%clk 0:00:15]} 42. Qc5 {[%clk 0:00:04]}  Qb1+ {[%clk 0:00:14]} 43. Kf2 {[%clk 0:00:04]}  Qxa2+ {[%clk 0:00:13]} 44. Kg3 {[%clk 0:00:04]}  Rb8 {[%clk 0:00:12]} 45. d5 {[%clk 0:00:04]}  Rb3 {[%clk 0:00:11]} 46. Qa7# {[%clk 0:00:04]} 1-0


[Site "https://www.chess.com"]

[Event "Titled Tuesday Blitz March 29 Early 2022"]
[White "Ronka, Erik"]
[Black "Janaszak, Dawid"]
[WhiteFideId "505080"]
[BlackFideId "1119206"]
[WhiteElo "2451"]
[BlackElo "2545"]
[Result "1/2-1/2"]
[Round "11"]
[TimeControl "180+1"]
[Date "2022.03.30"]
[WhiteClock "0:00:02"]
[BlackClock "0:00:05"]

1. e4 {[%clk 0:03:00]}  c5 {[%clk 0:02:59]} 2. Nf3 {[%clk 0:03:00]}  Nc6 {[%clk 0:03:00]} 3. d4 {[%clk 0:03:00]}  cxd4 {[%clk 0:03:00]} 4. Nxd4 {[%clk 0:03:01]}  g6 {[%clk 0:03:01]} 5. Nc3 {[%clk 0:02:59]}  Bg7 {[%clk 0:03:01]} 6. Be3 {[%clk 0:03:00]}  Nf6 {[%clk 0:03:01]} 7. Nxc6 {[%clk 0:03:00]}  bxc6 {[%clk 0:02:59]} 8. e5 {[%clk 0:03:00]}  Ng8 {[%clk 0:02:59]} 9. f4 {[%clk 0:02:58]}  Nh6 {[%clk 0:02:45]} 10. g4 {[%clk 0:02:49]}  Rb8 {[%clk 0:02:37]} 11. Rb1 {[%clk 0:02:15]}  Qa5 {[%clk 0:02:36]} 12. Bd2 {[%clk 0:02:06]}  d5 {[%clk 0:02:24]} 13. h3 {[%clk 0:02:01]}  O-O {[%clk 0:02:17]} 14. Bg2 {[%clk 0:01:59]}  Qb6 {[%clk 0:02:11]} 15. Qe2 {[%clk 0:01:53]}  Ba6 {[%clk 0:02:11]} 16. Qf2 {[%clk 0:01:52]}  Qc7 {[%clk 0:01:55]} 17. Ne2 {[%clk 0:01:44]}  f6 {[%clk 0:01:46]} 18. exf6 {[%clk 0:01:43]}  Bxf6 {[%clk 0:01:30]} 19. O-O {[%clk 0:01:32]}  Rxb2 {[%clk 0:01:22]} 20. Rxb2 {[%clk 0:01:30]}  Bxb2 {[%clk 0:01:23]} 21. Rb1 {[%clk 0:01:28]}  Bg7 {[%clk 0:01:18]} 22. Nd4 {[%clk 0:01:14]}  Qd6 {[%clk 0:01:02]} 23. Nb3 {[%clk 0:01:02]}  d4 {[%clk 0:00:35]} 24. Na5 {[%clk 0:00:56]}  d3 {[%clk 0:00:24]} 25. c3 {[%clk 0:00:48]}  Rc8 {[%clk 0:00:16]} 26. Qxa7 {[%clk 0:00:45]}  c5 {[%clk 0:00:11]} 27. Rb6 {[%clk 0:00:30]}  Qd8 {[%clk 0:00:08]} 28. Qxa6 {[%clk 0:00:26]}  Nf7 {[%clk 0:00:07]} 29. Rb7 {[%clk 0:00:21]}  Nd6 {[%clk 0:00:06]} 30. Nc6 {[%clk 0:00:16]}  Qf8 {[%clk 0:00:05]} 31. Nxe7+ {[%clk 0:00:15]}  Kh8 {[%clk 0:00:05]} 32. Rd7 {[%clk 0:00:15]}  Rd8 {[%clk 0:00:04]} 33. Rxd6 {[%clk 0:00:14]}  Qxe7 {[%clk 0:00:04]} 34. Rxd8+ {[%clk 0:00:14]}  Qxd8 {[%clk 0:00:04]} 35. Qc6 {[%clk 0:00:13]}  h5 {[%clk 0:00:04]} 36. Qxc5 {[%clk 0:00:11]}  Qh4 {[%clk 0:00:04]} 37. Qf2 {[%clk 0:00:08]}  Qe7 {[%clk 0:00:03]} 38. f5 {[%clk 0:00:07]}  gxf5 {[%clk 0:00:03]} 39. gxf5 {[%clk 0:00:08]}  Bf6 {[%clk 0:00:03]} 40. Be3 {[%clk 0:00:08]}  Bh4 {[%clk 0:00:04]} 41. Bd4+ {[%clk 0:00:08]}  Kh7 {[%clk 0:00:03]} 42. f6 {[%clk 0:00:07]}  Bxf2+ {[%clk 0:00:02]} 43. Bxf2 {[%clk 0:00:07]}  Qe2 {[%clk 0:00:02]} 44. Bf1 {[%clk 0:00:07]}  Qf3 {[%clk 0:00:02]} 45. f7 {[%clk 0:00:08]}  Qxf7 {[%clk 0:00:02]} 46. Bxd3+ {[%clk 0:00:08]}  Kg8 {[%clk 0:00:03]} 47. Bd4 {[%clk 0:00:09]}  Qxa2 {[%clk 0:00:03]} 48. Be4 {[%clk 0:00:08]}  Qd2 {[%clk 0:00:03]} 49. Bd5+ {[%clk 0:00:08]}  Kf8 {[%clk 0:00:03]} 50. Bf3 {[%clk 0:00:08]}  Ke8 {[%clk 0:00:03]} 51. Bxh5+ {[%clk 0:00:07]}  Kd8 {[%clk 0:00:04]} 52. Bg4 {[%clk 0:00:08]}  Qe1+ {[%clk 0:00:04]} 53. Kg2 {[%clk 0:00:08]}  Qd2+ {[%clk 0:00:05]} 54. Kg3 {[%clk 0:00:08]}  Qe1+ {[%clk 0:00:05]} 55. Kf4 {[%clk 0:00:07]}  Qd2+ {[%clk 0:00:06]} 56. Kf5 {[%clk 0:00:08]}  Qc1 {[%clk 0:00:05]} 57. Ke6 {[%clk 0:00:07]}  Qh6+ {[%clk 0:00:05]} 58. Kd5 {[%clk 0:00:07]}  Kc7 {[%clk 0:00:06]} 59. Be5+ {[%clk 0:00:07]}  Kb7 {[%clk 0:00:06]} 60. Bd4 {[%clk 0:00:06]}  Qc6+ {[%clk 0:00:05]} 61. Ke5 {[%clk 0:00:06]}  Qc7+ {[%clk 0:00:06]} 62. Ke4 {[%clk 0:00:06]}  Qc6+ {[%clk 0:00:07]} 63. Ke3 {[%clk 0:00:07]}  Qh6+ {[%clk 0:00:07]} 64. Kd3 {[%clk 0:00:06]}  Qc1 {[%clk 0:00:07]} 65. Kc4 {[%clk 0:00:06]}  Qf1+ {[%clk 0:00:07]} 66. Kc5 {[%clk 0:00:06]}  Qf8+ {[%clk 0:00:08]} 67. Kd5 {[%clk 0:00:06]}  Qf7+ {[%clk 0:00:08]} 68. Be6 {[%clk 0:00:05]}  Qf3+ {[%clk 0:00:08]} 69. Kd6 {[%clk 0:00:05]}  Qf4+ {[%clk 0:00:07]} 70. Be5 {[%clk 0:00:05]}  Qd2+ {[%clk 0:00:08]} 71. Bd5+ {[%clk 0:00:06]}  Kb6 {[%clk 0:00:07]} 72. c4 {[%clk 0:00:07]}  Qh6+ {[%clk 0:00:07]} 73. Be6 {[%clk 0:00:06]}  Qd2+ {[%clk 0:00:07]} 74. Ke7 {[%clk 0:00:06]}  Qe3 {[%clk 0:00:07]} 75. Kd6 {[%clk 0:00:05]}  Qd2+ {[%clk 0:00:08]} 76. Bd5 {[%clk 0:00:06]}  Qh6+ {[%clk 0:00:08]} 77. Kd7 {[%clk 0:00:05]}  Qxh3+ {[%clk 0:00:08]} 78. Kd6 {[%clk 0:00:05]}  Qh6+ {[%clk 0:00:08]} 79. Be6 {[%clk 0:00:04]}  Qd2+ {[%clk 0:00:08]} 80. Ke7 {[%clk 0:00:04]}  Qe2 {[%clk 0:00:07]} 81. Bd6 {[%clk 0:00:03]}  Qe3 {[%clk 0:00:06]} 82. c5+ {[%clk 0:00:04]}  Kc6 {[%clk 0:00:05]} 83. Kf6 {[%clk 0:00:03]}  Qf2+ {[%clk 0:00:05]} 84. Bf5 {[%clk 0:00:03]}  Qb2+ {[%clk 0:00:05]} 85. Ke6 {[%clk 0:00:03]}  Qe2+ {[%clk 0:00:05]} 86. Be5 {[%clk 0:00:02]}  Qxe5+ {[%clk 0:00:04]} 87. Kxe5 {[%clk 0:00:02]}  Kxc5 {[%clk 0:00:05]} 1/2-1/2


[Site "https://www.chess.com"]

[Event "Titled Tuesday Blitz March 29 Early 2022"]
[White "Rustemov, Alexander"]
[Black "Vysochin, Spartak"]
[WhiteFideId "4119002"]
[BlackFideId "14103516"]
[WhiteElo "2753"]
[BlackElo "2385"]
[Result "1-0"]
[Round "11"]
[TimeControl "180+1"]
[Date "2022.03.29"]
[WhiteClock "0:00:05"]
[BlackClock "0:00:10"]

1. d4 {[%clk 0:03:00]}  d5 {[%clk 0:02:59]} 2. c4 {[%clk 0:03:00]}  c6 {[%clk 0:02:58]} 3. Nc3 {[%clk 0:03:00]}  Nf6 {[%clk 0:02:58]} 4. e3 {[%clk 0:03:00]}  Bf5 {[%clk 0:02:56]} 5. cxd5 {[%clk 0:02:59]}  cxd5 {[%clk 0:02:52]} 6. Qb3 {[%clk 0:03:00]}  Nc6 {[%clk 0:02:50]} 7. Qxb7 {[%clk 0:02:59]}  Bd7 {[%clk 0:02:44]} 8. Qb3 {[%clk 0:02:59]}  Rb8 {[%clk 0:02:42]} 9. Qd1 {[%clk 0:03:00]}  e5 {[%clk 0:02:41]} 10. dxe5 {[%clk 0:03:01]}  Nxe5 {[%clk 0:02:40]} 11. Be2 {[%clk 0:03:02]}  Bd6 {[%clk 0:02:39]} 12. Nf3 {[%clk 0:03:02]}  Nxf3+ {[%clk 0:02:31]} 13. Bxf3 {[%clk 0:03:01]}  Qc7 {[%clk 0:02:31]} 14. h3 {[%clk 0:02:59]}  O-O {[%clk 0:02:30]} 15. O-O {[%clk 0:02:59]}  Rfd8 {[%clk 0:02:29]} 16. Qd3 {[%clk 0:02:44]}  g6 {[%clk 0:02:06]} 17. b3 {[%clk 0:02:24]}  Bf5 {[%clk 0:02:01]} 18. Qd2 {[%clk 0:02:21]}  Bh2+ {[%clk 0:01:31]} 19. Kh1 {[%clk 0:02:16]}  Be5 {[%clk 0:01:32]} 20. Bb2 {[%clk 0:02:11]}  Ne4 {[%clk 0:01:18]} 21. Bxe4 {[%clk 0:01:29]}  dxe4 {[%clk 0:01:17]} 22. Qe1 {[%clk 0:01:22]}  Rd3 {[%clk 0:01:04]} 23. Na4 {[%clk 0:01:18]}  Rbd8 {[%clk 0:00:50]} 24. Rc1 {[%clk 0:01:13]}  Qe7 {[%clk 0:00:50]} 25. Bxe5 {[%clk 0:01:13]}  Qxe5 {[%clk 0:00:50]} 26. Rc5 {[%clk 0:01:07]}  Qe6 {[%clk 0:00:47]} 27. Kh2 {[%clk 0:00:52]}  Rd2 {[%clk 0:00:46]} 28. Qa1 {[%clk 0:00:45]}  Qd6+ {[%clk 0:00:35]} 29. Qe5 {[%clk 0:00:44]}  Rxa2 {[%clk 0:00:31]} 30. Qxd6 {[%clk 0:00:30]}  Rxd6 {[%clk 0:00:31]} 31. g4 {[%clk 0:00:31]}  Be6 {[%clk 0:00:31]} 32. Nc3 {[%clk 0:00:24]}  Rb2 {[%clk 0:00:21]} 33. Nxe4 {[%clk 0:00:24]}  Rb6 {[%clk 0:00:18]} 34. Kg3 {[%clk 0:00:22]}  R2xb3 {[%clk 0:00:16]} 35. Ra1 {[%clk 0:00:21]}  a6 {[%clk 0:00:15]} 36. g5 {[%clk 0:00:20]}  Kg7 {[%clk 0:00:14]} 37. h4 {[%clk 0:00:20]}  h6 {[%clk 0:00:13]} 38. Nf6 {[%clk 0:00:17]}  hxg5 {[%clk 0:00:13]} 39. hxg5 {[%clk 0:00:17]}  Bf5 {[%clk 0:00:09]} 40. Rh1 {[%clk 0:00:16]}  Rxf6 {[%clk 0:00:09]} 41. gxf6+ {[%clk 0:00:16]}  Kxf6 {[%clk 0:00:09]} 42. Rc6+ {[%clk 0:00:16]}  Kg7 {[%clk 0:00:10]} 43. Rxa6 {[%clk 0:00:17]}  Be4 {[%clk 0:00:10]} 44. Rd1 {[%clk 0:00:14]}  Rb5 {[%clk 0:00:09]} 45. Rd4 {[%clk 0:00:10]}  Bd5 {[%clk 0:00:07]} 46. e4 {[%clk 0:00:08]}  Be6 {[%clk 0:00:07]} 47. f3 {[%clk 0:00:08]}  Rb3 {[%clk 0:00:07]} 48. Ra7 {[%clk 0:00:08]}  Rb1 {[%clk 0:00:06]} 49. Kf4 {[%clk 0:00:09]}  Rf1 {[%clk 0:00:04]} 50. Rd6 {[%clk 0:00:09]}  Kh6 {[%clk 0:00:02]} 51. Rxe6 {[%clk 0:00:07]}  fxe6 {[%clk 0:00:01]} 52. Re7 {[%clk 0:00:08]}  g5+ {[%clk 0:00:02]} 53. Kg3 {[%clk 0:00:07]}  Kh5 {[%clk 0:00:02]} 54. Rxe6 {[%clk 0:00:07]}  Rg1+ {[%clk 0:00:03]} 55. Kf2 {[%clk 0:00:07]}  Rh1 {[%clk 0:00:04]} 56. Re8 {[%clk 0:00:07]}  Ra1 {[%clk 0:00:03]} 57. Rg8 {[%clk 0:00:06]}  Kh6 {[%clk 0:00:03]} 58. Kg3 {[%clk 0:00:04]}  Rg1+ {[%clk 0:00:02]} 59. Kh3 {[%clk 0:00:04]}  Ra1 {[%clk 0:00:03]} 60. Kg4 {[%clk 0:00:04]}  Rg1+ {[%clk 0:00:02]} 61. Kf5 {[%clk 0:00:04]}  Rf1 {[%clk 0:00:02]} 62. Kg4 {[%clk 0:00:01]}  Rg1+ {[%clk 0:00:01]} 63. Kh3 {[%clk 0:00:02]}  Rf1 {[%clk 0:00:01]} 64. Kg3 {[%clk 0:00:02]}  Rd1 {[%clk 0:00:02]} 65. Kf2 {[%clk 0:00:03]}  Kh5 {[%clk 0:00:02]} 66. Ke3 {[%clk 0:00:03]}  Ra1 {[%clk 0:00:03]} 67. e5 {[%clk 0:00:03]}  Ra3+ {[%clk 0:00:04]} 68. Ke4 {[%clk 0:00:03]}  Ra4+ {[%clk 0:00:05]} 69. Kd5 {[%clk 0:00:03]}  Rf4 {[%clk 0:00:05]} 70. e6 {[%clk 0:00:03]}  Rxf3 {[%clk 0:00:06]} 71. e7 {[%clk 0:00:03]}  Re3 {[%clk 0:00:07]} 72. e8=Q+ {[%clk 0:00:04]}  Rxe8 {[%clk 0:00:07]} 73. Rxe8 {[%clk 0:00:04]}  Kg4 {[%clk 0:00:08]} 74. Ke4 {[%clk 0:00:04]}  Kg3 {[%clk 0:00:09]} 75. Ke3 {[%clk 0:00:05]}  g4 {[%clk 0:00:09]} 76. Ke2 {[%clk 0:00:05]}  Kg2 {[%clk 0:00:10]} 77. Rg8 {[%clk 0:00:05]}  g3 {[%clk 0:00:11]} 78. Ke1 {[%clk 0:00:05]}  Kh2 {[%clk 0:00:11]} 79. Kf1 {[%clk 0:00:05]}  Kh1 {[%clk 0:00:10]} 80. Rh8# {[%clk 0:00:05]} 1-0


[Site "https://www.chess.com"]

[Event "Titled Tuesday Blitz March 29 Early 2022"]
[White "Sanchez Alvares, Kelvin Antonio"]
[Black "Vestby-Ellingsen, Mads"]
[WhiteFideId "3906680"]
[BlackFideId "1520857"]
[WhiteElo "2531"]
[BlackElo "2470"]
[Result "0-1"]
[Round "11"]
[TimeControl "180+1"]
[Date "2022.03.30"]
[WhiteClock "0:00:01"]
[BlackClock "0:00:04"]

1. e4 {[%clk 0:03:00]}  e5 {[%clk 0:02:58]} 2. Nf3 {[%clk 0:03:00]}  d6 {[%clk 0:02:58]} 3. d4 {[%clk 0:02:59]}  exd4 {[%clk 0:02:55]} 4. Nxd4 {[%clk 0:02:58]}  Nf6 {[%clk 0:02:55]} 5. Nc3 {[%clk 0:02:58]}  Be7 {[%clk 0:02:56]} 6. g3 {[%clk 0:02:57]}  O-O {[%clk 0:02:55]} 7. Bg2 {[%clk 0:02:57]}  c6 {[%clk 0:02:54]} 8. O-O {[%clk 0:02:53]}  Re8 {[%clk 0:02:54]} 9. h3 {[%clk 0:02:52]}  Bf8 {[%clk 0:02:55]} 10. Nde2 {[%clk 0:02:52]}  Nbd7 {[%clk 0:02:55]} 11. g4 {[%clk 0:02:51]}  Nc5 {[%clk 0:02:53]} 12. Ng3 {[%clk 0:02:50]}  Qc7 {[%clk 0:02:50]} 13. f4 {[%clk 0:02:45]}  b5 {[%clk 0:02:48]} 14. a3 {[%clk 0:02:45]}  a5 {[%clk 0:02:47]} 15. g5 {[%clk 0:02:36]}  Nfd7 {[%clk 0:02:47]} 16. Be3 {[%clk 0:02:27]}  Bb7 {[%clk 0:02:42]} 17. Qd2 {[%clk 0:02:25]}  g6 {[%clk 0:02:25]} 18. Nd1 {[%clk 0:02:14]}  Nb6 {[%clk 0:02:21]} 19. b3 {[%clk 0:02:10]}  a4 {[%clk 0:02:10]} 20. b4 {[%clk 0:02:07]}  Nc4 {[%clk 0:02:10]} 21. Qf2 {[%clk 0:02:01]}  Nxe3 {[%clk 0:02:05]} 22. Nxe3 {[%clk 0:01:59]}  Nd7 {[%clk 0:02:03]} 23. c4 {[%clk 0:01:48]}  bxc4 {[%clk 0:01:59]} 24. Nxc4 {[%clk 0:01:36]}  d5 {[%clk 0:01:57]} 25. exd5 {[%clk 0:01:22]}  cxd5 {[%clk 0:01:56]} 26. Ne3 {[%clk 0:01:23]}  d4 {[%clk 0:01:52]} 27. Ng4 {[%clk 0:01:09]}  Bxg2 {[%clk 0:01:45]} 28. Kxg2 {[%clk 0:01:09]}  d3 {[%clk 0:01:29]} 29. Rad1 {[%clk 0:01:01]}  Qc3 {[%clk 0:01:16]} 30. f5 {[%clk 0:00:56]}  Qc4 {[%clk 0:00:43]} 31. Qf3 {[%clk 0:00:25]}  Rad8 {[%clk 0:00:17]} 32. Qxd3 {[%clk 0:00:23]}  Qxd3 {[%clk 0:00:12]} 33. Rxd3 {[%clk 0:00:23]}  gxf5 {[%clk 0:00:04]} 34. Rxf5 {[%clk 0:00:21]}  Be7 {[%clk 0:00:03]} 35. Nh6+ {[%clk 0:00:18]}  Kg7 {[%clk 0:00:04]} 36. Nxf7 {[%clk 0:00:09]}  Rc8 {[%clk 0:00:02]} 37. Rxd7 {[%clk 0:00:09]}  Rc2+ {[%clk 0:00:02]} 38. Kg1 {[%clk 0:00:04]}  Bxb4 {[%clk 0:00:03]} 39. axb4 {[%clk 0:00:01]}  Kg6 {[%clk 0:00:04]} 0-1


[Site "https://www.chess.com"]